fUSD/lending_fUSD_20250216
["ID","MTS","AMOUNT","RATE_DAILY","PERIOD"]
[353301007,1739743841622,-1040.32,0.00011123,2]
[353301008,1739743841631,-1172.76,0.00011123,2]
[353301009,1739743841640,-500.0,0.00011123,2]
[353301010,1739743841650,-500.0,0.00011123,2]
[353301011,1739743841659,-881.8,0.00011123,2]
[353301012,1739743841668,-500.0,0.00011123,2]
[353301013,1739743841678,-500.0,0.00011123,2]
[353301014,1739743841688,-1378.98,0.00011123,2]
[353301015,1739743841698,-537.54,0.00011123,2]
[353301016,1739743841708,-1016.8,0.00011123,2]
[353301017,1739743841717,-500.0,0.00011123,2]
[353301018,1739743841726,-1632.01,0.00011123,2]
[353301019,1739743841736,-740.54,0.00011123,2]
[353301020,1739743841745,-853.23,0.00011123,2]
[353301021,1739743841754,-543.84,0.00011123,2]
[353301022,1739743841764,-716.65,0.00011123,2]
[353301023,1739743841774,-500.0,0.00011123,2]
[353301024,1739743841784,-618.51,0.00011123,2]
[353301025,1739743841793,-599.54,0.00011123,2]
[353301026,1739743841803,-500.0,0.00011123,2]
[353301027,1739743841812,-791.59,0.00011123,2]
[353301028,1739743841822,-858.87,0.00011123,2]
[353301029,1739743841832,-1165.86,0.00011123,2]
[353301030,1739743841841,-500.0,0.00011123,2]
[353301031,1739743841851,-500.0,0.00011123,2]
[353301032,1739743841861,-717.35,0.00011123,2]
[353301033,1739743841870,-500.0,0.00011123,2]
[353301034,1739743841879,-500.0,0.00011123,2]
[353301035,1739743841890,-807.84,0.00011123,2]
[353301036,1739743841899,-500.0,0.00011123,2]
[353301037,1739743841909,-894.1,0.00011123,2]
[353301038,1739743841918,-1443.39,0.00011123,2]
[353301039,1739743841928,-652.28,0.00011123,2]
[353301040,1739743841938,-573.79,0.00011123,2]
[353301041,1739743841947,-500.0,0.00011123,2]
[353301042,1739743841957,-500.0,0.00011123,2]
[353301043,1739743841967,-1116.66,0.00011123,2]
[353301044,1739743841976,-500.0,0.00011123,2]
[353301045,1739743841985,-500.0,0.00011123,2]
[353301046,1739743841995,-500.0,0.00011123,2]
[353301047,1739743842004,-500.0,0.00011123,2]
[353301048,1739743842014,-628.06,0.00011123,2]
[353301049,1739743842024,-3109.81673496,0.00011182,2]
[353301050,1739743842033,-500.0,0.00011204,2]
[353301051,1739743842043,-500.0,0.00011204,2]
[353301052,1739743842052,-832.06,0.00011204,2]
[353301053,1739743842062,-500.0,0.00011204,2]
[353301054,1739743842071,-500.0,0.00011204,2]
[353301055,1739743842082,-500.0,0.00011204,2]
[353301056,1739743842091,-500.0,0.00011204,2]
[353301057,1739743842101,-500.0,0.00011204,2]
[353301058,1739743842110,-500.0,0.00011204,2]
[353301059,1739743842120,-500.0,0.00011204,2]
[353301060,1739743842129,-500.0,0.00011204,2]
[353301061,1739743842139,-500.0,0.00011204,2]
[353301062,1739743842148,-500.0,0.00011204,2]
[353301063,1739743842157,-500.0,0.00011204,2]
[353301064,1739743842167,-500.0,0.00011204,2]
[353301065,1739743842176,-500.0,0.00011204,2]
[353301066,1739743842187,-500.0,0.00011204,2]
[353301067,1739743842196,-500.0,0.00011204,2]
[353301068,1739743842206,-500.0,0.00011204,2]
[353301069,1739743842215,-500.0,0.00011204,2]
[353301070,1739743842224,-500.0,0.00011204,2]
[353301071,1739743842234,-500.0,0.00011204,2]
[353301072,1739743842244,-500.0,0.00011204,2]
[353301073,1739743842253,-500.0,0.00011204,2]
[353301074,1739743842263,-500.0,0.00011204,2]
[353301075,1739743842271,-500.0,0.00011204,2]
[353301076,1739743842281,-500.0,0.00011204,2]
[353301077,1739743842290,-500.0,0.00011204,2]
[353301078,1739743842300,-500.0,0.00011204,2]
[353301079,1739743842309,-500.0,0.00011204,2]
[353301080,1739743842319,-519.55,0.00011204,2]
[353301082,1739743842328,-500.0,0.00011204,2]
[353301084,1739743842338,-192.66,0.00011204,2]
[353301085,1739743842347,-500.0,0.00011204,2]
[353301087,1739743842356,-545.36,0.00011204,2]
[353301088,1739743842366,-537.82,0.00011204,2]
[353301090,1739743842375,-500.0,0.00011204,2]
[353301093,1739743842384,-500.0,0.00011204,2]
[353301095,1739743842393,-500.0,0.00011204,2]
[353301096,1739743842402,-428.619564,0.00011204,2]
[353301098,1739743842411,-500.0,0.00011204,2]
[353301100,1739743842421,-500.0,0.00011204,2]
[353301101,1739743842430,-605.506852,0.00011204,2]
[353301103,1739743842441,-500.0,0.00011204,2]
[353301104,1739743842450,-500.0,0.00011204,2]
[353301106,1739743842459,-500.0,0.00011204,2]
[353301108,1739743842469,-500.0,0.00011204,2]
[353301111,1739743842478,-500.0,0.00011204,2]
[353301112,1739743842487,-500.0,0.00011204,2]
[353301114,1739743842496,-500.0,0.00011204,2]
[353301116,1739743842505,-885.61,0.00011204,2]
[353301118,1739743842515,-500.0,0.00011204,2]
[353301120,1739743842527,-500.0,0.00011204,2]
[353301121,1739743842536,-500.0,0.00011204,2]
[353301122,1739743842545,-611.27,0.00011204,2]
[353301123,1739743842554,-500.0,0.00011204,2]
[353301124,1739743842564,-551.58,0.00011204,2]
[353301125,1739743842573,-533.88,0.00011204,2]
[353301126,1739743842583,-500.0,0.00011204,2]
[353301127,1739743842592,-500.0,0.00011204,2]
[353301128,1739743842603,-660.26,0.00011204,2]
[353301129,1739743842613,-593.26,0.00011204,2]
[353301130,1739743842622,-500.0,0.00011204,2]
[353301131,1739743842631,-553.94,0.00011204,2]
[353301132,1739743842641,-517.5645611,0.00011204,2]
[353301133,1739743842651,-500.0,0.00011204,2]
[353301134,1739743842660,-500.0,0.00011204,2]
[353301135,1739743842670,-500.0,0.00011204,2]
[353301136,1739743842679,-565.94,0.00011204,2]
[353301137,1739743842689,-500.0,0.00011204,2]
[353301138,1739743842698,-500.0,0.00011204,2]
[353301139,1739743842707,-500.0,0.00011204,2]
[353301140,1739743842716,-776.79,0.00011204,2]
[353301141,1739743842726,-673.88,0.00011204,2]
[353301142,1739743842735,-500.0,0.00011204,2]
[353301143,1739743842745,-500.0,0.00011204,2]
[353301144,1739743842755,-500.0,0.00011204,2]
[353301145,1739743842766,-500.0,0.00011204,2]
[353301146,1739743842775,-500.0,0.00011204,2]
[353301147,1739743842785,-500.0,0.00011204,2]
[353301148,1739743842794,-500.0,0.00011204,2]
[353301149,1739743842803,-500.0,0.00011204,2]
[353301150,1739743842812,-603.97,0.00011204,2]
[353301151,1739743842822,-500.0,0.00011204,2]
[353301152,1739743842831,-662.07,0.00011204,2]
[353301153,1739743842840,-500.0,0.00011204,2]
[353301154,1739743842850,-516.43456762,0.00011204,2]
[353301155,1739743842859,-500.0,0.00011204,2]
[353301156,1739743842868,-584.92,0.00011204,2]
[353301157,1739743842877,-500.0,0.00011204,2]
[353301158,1739743842887,-500.0,0.00011204,2]
[353301159,1739743842896,-1652.52,0.00011204,2]
[353301160,1739743842906,-500.0,0.00011204,2]
[353301161,1739743842915,-500.0,0.00011204,2]
[353301162,1739743842924,-709.16,0.00011204,2]
[353301163,1739743842934,-500.0,0.00011204,2]
[353301164,1739743842943,-1084.76,0.00011204,2]
[353301165,1739743842953,-1022.74,0.00011204,2]
[353301166,1739743842963,-500.0,0.00011204,2]
[353301167,1739743842972,-500.0,0.00011204,2]
[353301168,1739743842981,-862.95,0.00011204,2]
[353301169,1739743842991,-500.0,0.00011204,2]
[353301170,1739743843000,-500.0,0.00011204,2]
[353301171,1739743843009,-2109.33,0.00011204,2]
[353301172,1739743843018,-500.0,0.00011204,2]
[353301173,1739743843027,-659.1,0.00011204,2]
[353301174,1739743843036,-500.0,0.00011204,2]
[353301176,1739743843045,-796.43,0.00011204,2]
[353301177,1739743843054,-500.0,0.00011204,2]
[353301178,1739743843063,-1070.81,0.00011204,2]
[353301179,1739743843072,-676.0,0.00011204,2]
[353301180,1739743843082,-500.0,0.00011204,2]
[353301181,1739743843091,-1331.97,0.00011204,2]
[353301182,1739743843100,-500.0,0.00011204,2]
[353301183,1739743843110,-500.0,0.00011204,2]
[353301184,1739743843120,-500.0,0.00011204,2]
[353301185,1739743843129,-955.73,0.00011204,2]
[353301186,1739743843139,-500.0,0.00011204,2]
[353301187,1739743843147,-500.0,0.00011204,2]
[353301188,1739743843157,-1388.19,0.00011204,2]
[353301189,1739743843166,-3526.87,0.00011204,2]
[353301190,1739743843176,-793.3,0.00011204,2]
[353301191,1739743843185,-839.11,0.00011204,2]
[353301192,1739743843194,-632.97,0.00011204,2]
[353301193,1739743843204,-928.41,0.00011204,2]
[353301194,1739743843213,-500.0,0.00011204,2]
[353301195,1739743843222,-947.29,0.00011204,2]
[353301196,1739743843231,-500.0,0.00011204,2]
[353301197,1739743843241,-604.69,0.00011204,2]
[353301198,1739743843251,-500.0,0.00011204,2]
[353301199,1739743843260,-500.0,0.00011204,2]
[353301200,1739743843269,-500.0,0.00011204,2]
[353301201,1739743843278,-1004.66,0.00011204,2]
[353301202,1739743843287,-930.09,0.00011204,2]
[353301203,1739743843296,-1090.64,0.00011204,2]
[353301204,1739743843305,-506.83,0.00011204,2]
[353301205,1739743843315,-500.0,0.00011204,2]
[353301206,1739743843324,-500.0,0.00011204,2]
[353301207,1739743843333,-500.0,0.00011204,2]
[353301208,1739743843342,-552.02,0.00011204,2]
[353301209,1739743843351,-500.0,0.00011204,2]
[353301210,1739743843360,-3080.91,0.00011204,2]
[353301211,1739743843369,-500.0,0.00011204,2]
[353301212,1739743843378,-557.45,0.00011204,2]
[353301213,1739743843387,-836.96,0.00011204,2]
[353301214,1739743843397,-609.6,0.00011204,2]
[353301215,1739743843406,-500.0,0.00011204,2]
[353301216,1739743843415,-500.0,0.00011204,2]
[353301217,1739743843424,-500.0,0.00011204,2]
[353301218,1739743843433,-788.37,0.00011204,2]
[353301219,1739743843442,-500.0,0.00011204,2]
[353301220,1739743843451,-500.0,0.00011204,2]
[353301221,1739743843460,-535.91,0.00011204,2]
[353301222,1739743843469,-1029.76,0.00011204,2]
[353301223,1739743843478,-500.0,0.00011204,2]
[353301224,1739743843487,-500.0,0.00011204,2]
[353301225,1739743843496,-757.55,0.00011204,2]
[353301226,1739743843506,-500.0,0.00011204,2]
[353301227,1739743843515,-1207.77,0.00011204,2]
[353301228,1739743843528,-993.67,0.00011204,2]
[353301229,1739743843537,-500.0,0.00011204,2]
[353301230,1739743843546,-500.0,0.00011204,2]
[353301231,1739743843556,-883.43,0.00011204,2]
[353301232,1739743843566,-1193.44,0.00011204,2]
[353301233,1739743843575,-500.0,0.00011204,2]
[353301234,1739743843584,-1120.23,0.00011204,2]
[353301235,1739743843645,-1029.53,0.00011204,2]
[353301236,1739743843654,-500.0,0.00011204,2]
[353301237,1739743843663,-745.24,0.00011204,2]
[353301238,1739743843672,-2299.91,0.00011204,2]
[353301239,1739743843681,-500.0,0.00011204,2]
[353301240,1739743843690,-1170.51,0.00011204,2]
[353301241,1739743843699,-500.0,0.00011204,2]
[353301242,1739743843709,-500.0,0.00011204,2]
[353301243,1739743843718,-1124.91,0.00011204,2]
[353301244,1739743843727,-500.0,0.00011204,2]
[353301245,1739743843736,-500.0,0.00011204,2]
[353301246,1739743843745,-632.96,0.00011204,2]
[353301247,1739743843754,-1572.85,0.00011204,2]
[353301248,1739743843763,-1256.66,0.00011204,2]
[353301249,1739743843772,-500.0,0.00011204,2]
[353301250,1739743843786,-500.0,0.00011204,2]
[353301251,1739743843794,-500.0,0.00011204,2]
[353301252,1739743843803,-500.0,0.00011204,2]
[353301253,1739743843812,-526.13,0.00011204,2]
[353301254,1739743843821,-1051.04,0.00011204,2]
[353301255,1739743843831,-500.0,0.00011204,2]
[353301256,1739743843840,-916.19,0.00011204,2]
[353301257,1739743843851,-500.0,0.00011204,2]
[353301258,1739743843860,-1373.28,0.00011204,2]
[353301259,1739743843869,-500.0,0.00011204,2]
[353301260,1739743843878,-500.0,0.00011204,2]
[353301261,1739743843887,-670.74,0.00011204,2]
[353301262,1739743843896,-3030.67,0.00011204,2]
[353301263,1739743843904,-558.69,0.00011204,2]
[353301264,1739743843916,-1287.49,0.00011204,2]
[353301265,1739743843926,-2285.4,0.00011204,2]
[353301266,1739743843935,-962.38,0.00011204,2]
[353301267,1739743843944,-500.0,0.00011204,2]
[353301268,1739743843954,-500.0,0.00011204,2]
[353301269,1739743843964,-500.0,0.00011204,2]
[353301270,1739743843974,-500.0,0.00011204,2]
[353301271,1739743843983,-500.0,0.00011204,2]
[353301272,1739743843992,-919.68,0.00011204,2]
[353301273,1739743844002,-500.0,0.00011204,2]
[353301274,1739743844011,-500.0,0.00011204,2]
[353301275,1739743844020,-2447.18,0.00011204,2]
[353301276,1739743844029,-500.0,0.00011204,2]
[353301277,1739743844039,-500.0,0.00011204,2]
[353301278,1739743844049,-1272.04,0.00011204,2]
[353301279,1739743844059,-500.0,0.00011204,2]
[353301280,1739743844069,-1620.04,0.00011204,2]
[353301281,1739743844079,-626.14,0.00011204,2]
[353301282,1739743844088,-500.0,0.00011205,2]
[353301283,1739743844097,-500.0,0.00011205,2]
[353301284,1739743844108,-500.0,0.00011205,2]
[353301285,1739743844117,-500.0,0.00011205,2]
[353301286,1739743844126,-500.0,0.00011205,2]
[353301287,1739743844135,-500.0,0.00011205,2]
[353301288,1739743844144,-422.68199603,0.00011205,2]
[353301289,1739743844153,-500.0,0.00011205,2]
[353301290,1739743844163,-500.0,0.00011205,2]
[353301291,1739743844173,-500.0,0.00011205,2]
[353301292,1739743844182,-500.0,0.00011205,2]
[353301293,1739743844192,-500.0,0.00011205,2]
[353301294,1739743844201,-544.21,0.00011205,2]
[353301295,1739743844212,-500.0,0.00011205,2]
[353301296,1739743844223,-500.0,0.00011205,2]
[353301297,1739743844235,-500.0,0.00011205,2]
[353301298,1739743844245,-500.0,0.00011205,2]
[353301299,1739743844255,-500.0,0.00011205,2]
[353301300,1739743844265,-500.0,0.00011205,2]
[353301301,1739743844275,-500.0,0.00011205,2]
[353301302,1739743844285,-500.0,0.00011205,2]
[353301303,1739743844295,-714.06,0.00011205,2]
[353301304,1739743844305,-500.0,0.00011205,2]
[353301305,1739743844315,-500.0,0.00011205,2]
[353301306,1739743844326,-500.0,0.00011205,2]
[353301307,1739743844335,-500.0,0.00011205,2]
[353301308,1739743844346,-728.13,0.00011205,2]
[353301309,1739743844355,-500.0,0.00011205,2]
[353301310,1739743844364,-500.0,0.00011205,2]
[353301311,1739743844373,-583.4,0.00011205,2]
[353301312,1739743844384,-500.0,0.00011205,2]
[353301313,1739743844393,-500.0,0.00011205,2]
[353301314,1739743844402,-500.0,0.00011205,2]
[353301315,1739743844411,-500.0,0.00011205,2]
[353301316,1739743844420,-500.0,0.00011205,2]
[353301317,1739743844429,-500.0,0.00011205,2]
[353301318,1739743844439,-500.0,0.00011205,2]
[353301319,1739743844448,-500.0,0.00011205,2]
[353301320,1739743844457,-500.0,0.00011205,2]
[353301321,1739743844467,-500.0,0.00011205,2]
[353301322,1739743844475,-500.0,0.00011205,2]
[353301323,1739743844485,-500.0,0.00011205,2]
[353301324,1739743844494,-500.0,0.00011205,2]
[353301325,1739743844503,-500.0,0.00011205,2]
[353301326,1739743844512,-500.0,0.00011205,2]
[353301327,1739743844524,-569.07,0.00011205,2]
[353301328,1739743844533,-500.0,0.00011205,2]
[353301329,1739743844542,-639.31,0.00011205,2]
[353301330,1739743844551,-500.0,0.00011205,2]
[353301331,1739743844560,-500.0,0.00011205,2]
[353301332,1739743844569,-500.0,0.00011205,2]
[353301333,1739743844578,-500.0,0.00011205,2]
[353301334,1739743844587,-500.0,0.00011205,2]
[353301335,1739743844596,-500.0,0.00011205,2]
[353301336,1739743844606,-500.0,0.00011205,2]
[353301337,1739743844615,-500.0,0.00011205,2]
[353301338,1739743844624,-500.0,0.00011205,2]
[353301339,1739743844635,-746.52,0.00011205,2]
[353301340,1739743844644,-500.0,0.00011205,2]
[353301341,1739743844654,-620.87,0.00011205,2]
[353301342,1739743844664,-527.75,0.00011205,2]
[353301343,1739743844674,-703.13,0.00011205,2]
[353301344,1739743844684,-758.03,0.00011205,2]
[353301345,1739743844693,-500.0,0.00011205,2]
[353301346,1739743844702,-500.0,0.00011205,2]
[353301347,1739743844711,-500.0,0.00011205,2]
[353301348,1739743844721,-500.0,0.00011205,2]
[353301349,1739743844730,-500.0,0.00011205,2]
[353301350,1739743844738,-500.0,0.00011205,2]
[353301351,1739743844748,-523.85,0.00011205,2]
[353301352,1739743844758,-500.0,0.00011205,2]
[353301353,1739743844767,-500.0,0.00011205,2]
[353301354,1739743844776,-500.0,0.00011205,2]
[353301355,1739743844785,-536.09,0.00011205,2]
[353301356,1739743844794,-500.0,0.00011205,2]
[353301357,1739743844803,-500.0,0.00011205,2]
[353301358,1739743844811,-1041.84,0.00011205,2]
[353301359,1739743844820,-640.13,0.00011205,2]
[353301360,1739743844829,-500.0,0.00011205,2]
[353301361,1739743844838,-755.41,0.00011205,2]
[353301362,1739743844847,-411.52,0.00011205,2]
[353301363,1739743844856,-828.92,0.00011205,2]
[353301364,1739743844865,-1036.75,0.00011205,2]
[353301365,1739743844874,-657.03,0.00011205,2]
[353301366,1739743844883,-1298.67,0.00011205,2]
[353301367,1739743844892,-1000.0,0.00011205,2]
[353301368,1739743844902,-1040.32,0.00011205,2]
[353301369,1739743844911,-1172.76,0.00011205,2]
[353301370,1739743844920,-500.0,0.00011205,2]
[353301371,1739743844930,-500.0,0.00011205,2]
[353301372,1739743844939,-881.8,0.00011205,2]
[353301373,1739743844948,-500.0,0.00011205,2]
[353301374,1739743844958,-500.0,0.00011205,2]
[353301375,1739743844967,-1378.98,0.00011205,2]
[353301376,1739743844977,-537.54,0.00011205,2]
[353301377,1739743844986,-1016.8,0.00011205,2]
[353301378,1739743844996,-500.0,0.00011205,2]
[353301379,1739743845005,-1632.01,0.00011205,2]
[353301380,1739743845014,-740.54,0.00011205,2]
[353301381,1739743845024,-853.23,0.00011205,2]
[353301382,1739743845033,-543.84,0.00011205,2]
[353301383,1739743845042,-716.65,0.00011205,2]
[353301384,1739743845051,-500.0,0.00011205,2]
[353301385,1739743845060,-618.51,0.00011205,2]
[353301386,1739743845070,-599.54,0.00011205,2]
[353301387,1739743845079,-500.0,0.00011205,2]
[353301388,1739743845088,-791.59,0.00011205,2]
[353301389,1739743845097,-858.87,0.00011205,2]
[353301390,1739743845106,-1165.86,0.00011205,2]
[353301391,1739743845115,-500.0,0.00011205,2]
[353301392,1739743845124,-500.0,0.00011205,2]
[353301393,1739743845133,-717.35,0.00011205,2]
[353301394,1739743845143,-500.0,0.00011205,2]
[353301395,1739743845154,-500.0,0.00011205,2]
[353301396,1739743845164,-807.84,0.00011205,2]
[353301397,1739743845174,-500.0,0.00011205,2]
[353301398,1739743845183,-894.1,0.00011205,2]
[353301399,1739743845192,-1443.39,0.00011205,2]
[353301400,1739743845201,-652.28,0.00011205,2]
[353301401,1739743845210,-573.79,0.00011205,2]
[353301402,1739743845220,-500.0,0.00011205,2]
[353301403,1739743845229,-500.0,0.00011205,2]
[353301404,1739743845238,-1116.66,0.00011205,2]
[353301405,1739743845247,-500.0,0.00011205,2]
[353301406,1739743845257,-500.0,0.00011205,2]
[353301407,1739743845267,-500.0,0.00011205,2]
[353301408,1739743845276,-500.0,0.00011205,2]
[353301409,1739743845285,-628.06,0.00011205,2]
[353301410,1739743845294,-1046.0104358,0.00011231,3]
[353301411,1739743845303,-1200.0,0.00011232,2]
[353301412,1739743845313,-1200.0,0.00011232,2]
[353301413,1739743845322,-1200.0,0.00011232,2]
[353301414,1739743845332,-3109.81673496,0.00011247,2]
[353301415,1739743845341,-230.39015289,0.00011277,2]
[353301416,1739743845351,-19759.47,0.00011281,2]
[353301417,1739743845360,-11025.0,0.00011281,2]
[353301418,1739743845369,-500.0,0.00011286,2]
[353301419,1739743845379,-500.0,0.00011286,2]
[353301420,1739743845387,-832.06,0.00011286,2]
[353301421,1739743845397,-500.0,0.00011286,2]
[353301422,1739743845406,-290.10834352,0.00011286,2]
[353301423,1739743845415,-500.0,0.00011286,2]
[353301424,1739743845424,-500.0,0.00011286,2]
[353301425,1739743845434,-500.0,0.00011286,2]
[353301426,1739743845443,-619.22,0.00011286,2]
[353301427,1739743845453,-500.0,0.00011286,2]
[353301428,1739743845463,-500.0,0.00011286,2]
[353301429,1739743845473,-500.0,0.00011286,2]
[353301430,1739743845485,-500.0,0.00011286,2]
[353301431,1739743845495,-500.0,0.00011286,2]
[353301432,1739743845504,-500.0,0.00011286,2]
[353301433,1739743845514,-500.0,0.00011286,2]
[353301434,1739743845527,-500.0,0.00011286,2]
[353301435,1739743845537,-500.0,0.00011286,2]
[353301436,1739743845547,-500.0,0.00011286,2]
[353301437,1739743845558,-409.21,0.00011286,2]
[353301438,1739743845570,-500.0,0.00011286,2]
[353301439,1739743845579,-387.64,0.00011286,2]
[353301440,1739743845588,-500.0,0.00011286,2]
[353301441,1739743845597,-500.0,0.00011286,2]
[353301442,1739743845608,-500.0,0.00011286,2]
[353301443,1739743845618,-500.0,0.00011286,2]
[353301444,1739743845627,-500.0,0.00011286,2]
[353301445,1739743845636,-519.55,0.00011286,2]
[353301446,1739743845646,-500.0,0.00011286,2]
[353301447,1739743845655,-500.0,0.00011286,2]
[353301448,1739743845664,-545.36,0.00011286,2]
[353301449,1739743845673,-537.82,0.00011286,2]
[353301450,1739743845683,-500.0,0.00011286,2]
[353301451,1739743845694,-500.0,0.00011286,2]
[353301452,1739743845703,-428.619564,0.00011286,2]
[353301453,1739743845712,-500.0,0.00011286,2]
[353301454,1739743845722,-500.0,0.00011286,2]
[353301455,1739743845731,-605.506852,0.00011286,2]
[353301456,1739743845740,-500.0,0.00011286,2]
[353301457,1739743845749,-500.0,0.00011286,2]
[353301458,1739743845759,-500.0,0.00011286,2]
[353301459,1739743845770,-500.0,0.00011286,2]
[353301460,1739743845779,-500.0,0.00011286,2]
[353301461,1739743845788,-500.0,0.00011286,2]
[353301462,1739743845798,-885.61,0.00011286,2]
[353301463,1739743845807,-500.0,0.00011286,2]
[353301464,1739743845817,-500.0,0.00011286,2]
[353301465,1739743845826,-500.0,0.00011286,2]
[353301466,1739743845840,-611.27,0.00011286,2]
[353301467,1739743845850,-500.0,0.00011286,2]
[353301468,1739743845860,-551.58,0.00011286,2]
[353301469,1739743845870,-500.0,0.00011286,2]
[353301470,1739743845880,-500.0,0.00011286,2]
[353301471,1739743845890,-660.26,0.00011286,2]
[353301472,1739743845899,-593.26,0.00011286,2]
[353301473,1739743845909,-500.0,0.00011286,2]
[353301474,1739743845919,-553.94,0.00011286,2]
[353301475,1739743845929,-500.0,0.00011286,2]
[353301476,1739743845938,-500.0,0.00011286,2]
[353301477,1739743845948,-565.94,0.00011286,2]
[353301478,1739743845957,-500.0,0.00011286,2]
[353301479,1739743845967,-500.0,0.00011286,2]
[353301480,1739743845976,-500.0,0.00011286,2]
[353301481,1739743845985,-776.79,0.00011286,2]
[353301482,1739743845994,-673.88,0.00011286,2]
[353301483,1739743846004,-500.0,0.00011286,2]
[353301484,1739743846013,-500.0,0.00011286,2]
[353301485,1739743846022,-500.0,0.00011286,2]
[353301486,1739743846032,-500.0,0.00011286,2]
[353301487,1739743846041,-500.0,0.00011286,2]
[353301488,1739743846050,-1200.0,0.00011286,2]
[353301490,1739743846060,-500.0,0.00011286,2]
[353301491,1739743846069,-500.0,0.00011286,2]
[353301492,1739743846079,-500.0,0.00011286,2]
[353301493,1739743846088,-603.97,0.00011286,2]
[353301494,1739743846098,-500.0,0.00011286,2]
[353301495,1739743846107,-662.07,0.00011286,2]
[353301496,1739743846117,-500.0,0.00011286,2]
[353301497,1739743846126,-500.0,0.00011286,2]
[353301498,1739743846136,-584.92,0.00011286,2]
[353301499,1739743846145,-500.0,0.00011286,2]
[353301500,1739743846155,-500.0,0.00011286,2]
[353301501,1739743846164,-1652.52,0.00011286,2]
[353301502,1739743846174,-500.0,0.00011286,2]
[353301503,1739743846184,-500.0,0.00011286,2]
[353301504,1739743846194,-709.16,0.00011286,2]
[353301505,1739743846204,-500.0,0.00011286,2]
[353301506,1739743846213,-1084.76,0.00011286,2]
[353301507,1739743846223,-1022.74,0.00011286,2]
[353301508,1739743846232,-500.0,0.00011286,2]
[353301509,1739743846242,-500.0,0.00011286,2]
[353301510,1739743846252,-862.95,0.00011286,2]
[353301511,1739743846262,-500.0,0.00011286,2]
[353301512,1739743846272,-500.0,0.00011286,2]
[353301513,1739743846282,-2109.33,0.00011286,2]
[353301514,1739743846292,-500.0,0.00011286,2]
[353301515,1739743846301,-659.1,0.00011286,2]
[353301516,1739743846311,-500.0,0.00011286,2]
[353301517,1739743846321,-796.43,0.00011286,2]
[353301518,1739743846330,-500.0,0.00011286,2]
[353301519,1739743846340,-1070.81,0.00011286,2]
[353301520,1739743846350,-676.0,0.00011286,2]
[353301521,1739743846361,-375.71542173,0.00011286,2]
[353301522,1739743846370,-1331.97,0.00011286,2]
[353301523,1739743846380,-500.0,0.00011286,2]
[353301524,1739743846390,-500.0,0.00011286,2]
[353301525,1739743846400,-955.73,0.00011286,2]
[353301526,1739743846410,-500.0,0.00011286,2]